fUST/lending_fUST_20250424
["ID","MTS","AMOUNT","RATE_DAILY","PERIOD"]
[358859918,1745489448677,-1037.35,0.0002,2]
[358859919,1745489448686,-1310.64,0.0002,2]
[358859920,1745489448697,-606.59,0.0002,2]
[358859921,1745489448710,-799.9,0.0002,2]
[358859922,1745489448720,-500.0,0.0002,2]
[358859923,1745489448730,-1707.04,0.0002,2]
[358859924,1745489448740,-692.61,0.0002,2]
[358859925,1745489448751,-609.36,0.0002,2]
[358859926,1745489448760,-500.0,0.0002,2]
[358859927,1745489448769,-500.0,0.0002,2]
[358859928,1745489448780,-500.0,0.0002,2]
[358859929,1745489448791,-500.0,0.0002,2]
[358859930,1745489448800,-562.41,0.0002,2]
[358859931,1745489448810,-500.0,0.0002,2]
[358859932,1745489448819,-500.0,0.0002,2]
[358859933,1745489448829,-1256.09,0.0002,2]
[358859934,1745489448838,-3272.68,0.0002,2]
[358859935,1745489448858,-500.0,0.0002,2]
[358859936,1745489448871,-1170.88,0.0002,2]
[358859937,1745489448881,-517.92,0.0002,2]
[358859938,1745489448891,-500.0,0.0002,2]
[358859939,1745489448901,-1132.42,0.0002,2]
[358859940,1745489448911,-500.0,0.0002,2]
[358859941,1745489448921,-723.12,0.0002,2]
[358859942,1745489448931,-1376.99,0.0002,2]
[358859943,1745489448941,-302.82910507,0.0002,2]
[358859944,1745489448958,-197.17089493,0.0002,2]
[358859945,1745489448968,-775.42,0.0002,2]
[358859946,1745489448977,-500.0,0.0002,2]
[358859947,1745489448987,-500.0,0.0002,2]
[358859948,1745489448997,-500.0,0.0002,2]
[358859949,1745489449007,-1124.79,0.0002,2]
[358859950,1745489449017,-151.96933458,0.0002,2]
[358859951,1745489449027,-533.8,0.0002,2]
[358859952,1745489449036,-559.68,0.0002,2]
[358859953,1745489449046,-500.0,0.0002,2]
[358859954,1745489449056,-500.0,0.0002,2]
[358859955,1745489449067,-1041.22,0.0002,2]
[358859956,1745489449076,-2174.1,0.0002,2]
[358859957,1745489449086,-500.0,0.0002,2]
[358859958,1745489449096,-513.01,0.0002,2]
[358859959,1745489449107,-500.0,0.0002,2]
[358859960,1745489449117,-500.0,0.0002,2]
[358859961,1745489449127,-375.4146125,0.0002,2]
[358859962,1745489449137,-500.0,0.0002,2]
[358859963,1745489449147,-655.92,0.0002,2]
[358859964,1745489449157,-514.54,0.0002,2]
[358859965,1745489449167,-500.0,0.0002,2]
[358859966,1745489449177,-500.0,0.0002,2]
[358859967,1745489449187,-151.0,0.0002,2]
[358859968,1745489449197,-670.98,0.0002,2]
[358859969,1745489449207,-719.07,0.0002,2]
[358859970,1745489449217,-500.0,0.0002,2]
[358859971,1745489449227,-1121.26,0.0002,2]
[358859972,1745489449236,-500.0,0.0002,2]
[358859973,1745489449246,-500.0,0.0002,2]
[358859974,1745489449257,-853.69,0.0002,2]
[358859975,1745489449267,-500.0,0.0002,2]
[358859976,1745489449276,-500.0,0.0002,2]
[358859977,1745489449286,-631.44,0.0002,2]
[358859978,1745489449296,-500.0,0.0002,2]
[358859979,1745489449306,-500.0,0.0002,2]
[358859980,1745489449315,-500.0,0.0002,2]
[358859981,1745489449325,-500.0,0.0002,2]
[358859982,1745489449335,-500.0,0.0002,2]
[358859983,1745489449345,-500.0,0.0002,2]
[358859984,1745489449355,-451.76606701,0.0002,2]
[358859985,1745489449365,-500.0,0.0002,2]
[358859986,1745489449375,-598.03,0.0002,2]
[358859987,1745489449384,-500.0,0.0002,2]
[358859988,1745489449395,-500.0,0.0002,2]
[358859989,1745489449404,-351.6654449,0.0002,2]
[358859990,1745489449414,-500.0,0.0002,2]
[358859991,1745489449424,-500.0,0.0002,2]
[358859992,1745489449434,-500.0,0.0002,2]
[358859993,1745489449444,-500.0,0.0002,2]
[358859994,1745489449454,-500.0,0.0002,2]
[358859995,1745489449464,-500.0,0.0002,2]
[358859996,1745489449474,-177.331041,0.0002,2]
[358859997,1745489449490,-177.331041,0.0002,2]
[358859998,1745489449500,-2024.88,0.0002,2]
[358859999,1745489449511,-177.331041,0.0002,2]
[358860000,1745489449521,-177.331041,0.0002,2]
[358860001,1745489449531,-1098.13,0.0002,2]
[358860002,1745489449541,-503.7637239,0.0002,2]
[358860003,1745489449550,-500.0,0.0002,2]
[358860004,1745489449560,-533.53,0.0002,2]
[358860005,1745489449570,-513.81,0.0002,2]
[358860006,1745489449580,-1754.72,0.0002,2]
[358860007,1745489449590,-901.96,0.0002,2]
[358860008,1745489449599,-500.0,0.0002,2]
[358860009,1745489449609,-1124.14,0.0002,2]
[358860010,1745489449620,-500.0,0.0002,2]
[358860011,1745489449632,-1367.86,0.0002,2]
[358860012,1745489449643,-581.52,0.0002,2]
[358860013,1745489449652,-587.18,0.0002,2]
[358860014,1745489449662,-500.0,0.0002,2]
[358860015,1745489449672,-916.63,0.0002,2]
[358860016,1745489449682,-500.0,0.0002,2]
[358860017,1745489449692,-500.0,0.0002,2]
[358860018,1745489449705,-151.0,0.0002,2]
[358860019,1745489449715,-661.66,0.0002,2]
[358860020,1745489449724,-4282.21,0.0002,2]
[358860021,1745489449734,-3887.48,0.0002,2]
[358860022,1745489449744,-185.651092,0.0002,2]
[358860023,1745489449754,-579.52,0.0002,2]
[358860024,1745489449764,-500.0,0.0002,2]
[358860025,1745489449774,-546.89,0.0002,2]
[358860026,1745489449785,-567.52,0.0002,2]
[358860027,1745489449795,-500.0,0.0002,2]
[358860028,1745489449806,-1185.64,0.0002,2]
[358860029,1745489449815,-931.76,0.0002,2]
[358860030,1745489449825,-5074.33,0.0002,2]
[358860031,1745489449835,-500.0,0.0002,2]
[358860032,1745489449844,-500.0,0.0002,2]
[358860033,1745489449854,-500.0,0.0002,2]
[358860034,1745489449864,-1553.83,0.0002,2]
[358860035,1745489449874,-864.12,0.0002,2]
[358860036,1745489449884,-500.0,0.0002,2]
[358860037,1745489449894,-911.589968,0.0002,2]
[358860038,1745489449904,-911.589968,0.0002,2]
[358860039,1745489449914,-886.11,0.0002,2]
[358860040,1745489449924,-500.0,0.0002,2]
[358860041,1745489449933,-911.589968,0.0002,2]
[358860042,1745489449943,-500.0,0.0002,2]
[358860043,1745489449953,-911.589968,0.0002,2]
[358860044,1745489449962,-500.0,0.0002,2]
[358860045,1745489449971,-1443.83,0.0002,2]
[358860046,1745489449981,-509.0,0.0002,2]
[358860047,1745489449991,-1192.53,0.0002,2]
[358860048,1745489450000,-615.55,0.0002,2]
[358860049,1745489450010,-314.87103916,0.0002,2]
[358860050,1745489450020,-3805.81,0.0002,2]
[358860051,1745489450029,-2046.51,0.0002,2]
[358860052,1745489450039,-678.09,0.0002,2]
[358860053,1745489450049,-500.0,0.0002,2]
[358860054,1745489450058,-500.0,0.0002,2]
[358860055,1745489450068,-562.85,0.0002,2]
[358860056,1745489450077,-632.41,0.0002,2]
[358860057,1745489450087,-500.0,0.0002,2]
[358860058,1745489450097,-912.5,0.0002,2]
[358860059,1745489450107,-500.0,0.0002,2]
[358860060,1745489450116,-1401.19,0.0002,2]
[358860061,1745489450129,-500.0,0.0002,2]
[358860062,1745489450138,-874.28,0.0002,2]
[358860063,1745489450148,-500.0,0.0002,2]
[358860064,1745489450157,-873.15,0.0002,2]
[358860065,1745489450167,-3143.72,0.0002,2]
[358860066,1745489450176,-500.0,0.0002,2]
[358860067,1745489450187,-500.0,0.0002,2]
[358860068,1745489450197,-500.0,0.0002,2]
[358860069,1745489450207,-500.0,0.0002,2]
[358860070,1745489450216,-500.0,0.0002,2]
[358860071,1745489450227,-500.0,0.0002,2]
[358860072,1745489450237,-500.0,0.0002,2]
[358860073,1745489450246,-997.02,0.0002,2]
[358860074,1745489450256,-500.0,0.0002,2]
[358860075,1745489450266,-4790.61,0.0002,2]
[358860076,1745489450275,-813.07,0.0002,2]
[358860077,1745489450284,-1112.09,0.0002,2]
[358860078,1745489450294,-500.0,0.0002,2]
[358860079,1745489450303,-1475.7,0.0002,2]
[358860080,1745489450313,-582.89,0.0002,2]
[358860081,1745489450322,-830.22,0.0002,2]
[358860082,1745489450332,-676.06,0.0002,2]
[358860083,1745489450341,-3788.55,0.0002,2]
[358860084,1745489450351,-522.27,0.0002,2]
[358860085,1745489450360,-1148.4,0.0002,2]
[358860086,1745489450370,-1824.6,0.0002,2]
[358860087,1745489450381,-601.47,0.0002,2]
[358860088,1745489450391,-151.0,0.0002,2]
[358860089,1745489450402,-500.0,0.0002,2]
[358860090,1745489450411,-151.0,0.0002,2]
[358860091,1745489450422,-399.59146445,0.0002,2]
[358860092,1745489450431,-500.0,0.0002,2]
[358860093,1745489450441,-329.54391353,0.0002,2]
[358860094,1745489450590,-4433.4,0.0002,2]
[358860095,1745489450600,-1019.64,0.0002,2]
[358860096,1745489450611,-500.0,0.0002,2]
[358860097,1745489450621,-500.0,0.0002,2]
[358860098,1745489450631,-930.28,0.0002,2]
[358860099,1745489450641,-500.0,0.0002,2]
[358860100,1745489450650,-720.8,0.0002,2]
[358860101,1745489450660,-1451.68,0.0002,2]
[358860102,1745489450670,-500.0,0.0002,2]
[358860103,1745489450679,-543.60969173,0.0002,2]
[358860104,1745489450689,-878.44,0.0002,2]
[358860105,1745489450699,-500.0,0.0002,2]
[358860106,1745489450712,-556.83,0.0002,2]
[358860107,1745489450721,-500.0,0.0002,2]
[358860108,1745489450730,-500.0,0.0002,2]
[358860109,1745489450739,-500.0,0.0002,2]
[358860110,1745489450749,-10107.57,0.0002,2]
[358860111,1745489450759,-664.52,0.0002,2]
[358860112,1745489450767,-500.0,0.0002,2]
[358860113,1745489450777,-500.0,0.0002,2]
[358860114,1745489450787,-3349.47,0.0002,2]
[358860115,1745489450796,-160.85259476,0.0002,2]
[358860116,1745489450806,-505.63924459,0.0002,2]
[358860117,1745489450816,-500.0,0.0002,2]
[358860118,1745489450825,-500.0,0.0002,2]
[358860119,1745489450835,-504.6010686,0.0002,2]
[358860120,1745489450844,-500.0,0.0002,2]
[358860121,1745489450853,-3297.65,0.0002,2]
[358860122,1745489450862,-578.53,0.0002,2]
[358860123,1745489450872,-4840.54,0.0002,2]
[358860124,1745489450881,-500.0,0.0002,2]
[358860125,1745489450891,-6053.9,0.0002,2]
[358860126,1745489450901,-1528.26,0.0002,2]
[358860127,1745489450912,-500.0,0.0002,2]
[358860128,1745489450921,-953.91,0.0002,2]
[358860129,1745489450933,-601.0,0.0002,2]
[358860130,1745489450942,-740.15,0.0002,2]
[358860131,1745489450952,-503.9743333,0.0002,2]
[358860132,1745489450962,-3353.23,0.0002,2]
[358860133,1745489450973,-500.0,0.0002,2]
[358860134,1745489450983,-2000.0,0.0002,4]
[358860135,1745489451002,-894.56,0.0002,2]
[358860136,1745489451014,-1155.18,0.0002,2]
[358860137,1745489451024,-5489.47,0.0002,2]
[358860138,1745489451035,-5293.98,0.0002,2]
[358860139,1745489451045,-971.86,0.0002,2]
[358860140,1745489451055,-500.0,0.0002,2]
[358860141,1745489451065,-500.0,0.0002,2]
[358860142,1745489451075,-500.0,0.0002,2]
[358860143,1745489451086,-500.0,0.0002,2]
[358860144,1745489451096,-815.22,0.0002,2]
[358860145,1745489451106,-591.97,0.0002,2]
[358860146,1745489451116,-500.0,0.0002,2]
[358860147,1745489451126,-500.0,0.0002,2]
[358860148,1745489451136,-500.0,0.0002,2]
[358860149,1745489451147,-500.0,0.0002,2]
[358860150,1745489451157,-500.0,0.0002,2]
[358860151,1745489451167,-296.93125,0.0002,2]
[358860152,1745489451177,-566.6505297,0.00020055,2]
[358860153,1745489451187,-911.589968,0.00020272,2]
[358860154,1745489451197,-911.589968,0.00020272,2]
[358860155,1745489451208,-160.0,0.00020272,3]
[358860156,1745489451218,-160.0,0.00020272,3]
[358860157,1745489451228,-160.0,0.00020273,3]
[358860158,1745489451238,-160.0,0.00020273,3]
[358860159,1745489451249,-840.0731918,0.00020273,3]
[358860160,1745489451259,-12576.49486522,0.00020273,3]
[358860161,1745489451269,-500.0,0.00020273,2]
[358860162,1745489451279,-500.0,0.00020273,2]
[358860163,1745489451289,-500.0,0.00020273,2]
[358860164,1745489451299,-500.0,0.00020273,2]
[358860165,1745489451309,-596.34,0.00020273,2]
[358860166,1745489451319,-500.0,0.00020273,2]
[358860167,1745489451329,-500.0,0.00020273,2]
[358860168,1745489451339,-500.0,0.00020273,2]
[358860169,1745489451348,-500.0,0.00020273,2]
[358860170,1745489451359,-500.0,0.00020273,2]
[358860171,1745489451369,-500.0,0.00020273,2]
[358860172,1745489451379,-500.0,0.00020273,2]
[358860173,1745489451389,-1027.64,0.00020273,2]
[358860174,1745489451399,-500.0,0.00020273,2]
[358860175,1745489451409,-500.0,0.00020273,2]
[358860176,1745489451419,-500.0,0.00020273,2]
[358860177,1745489451428,-263.69379904,0.00020273,2]
[358860178,1745489451438,-500.0,0.00020273,2]
[358860179,1745489451448,-500.0,0.00020273,2]
[358860180,1745489451458,-500.0,0.00020273,2]
[358860181,1745489451468,-500.0,0.00020273,2]
[358860182,1745489451478,-500.0,0.00020273,2]
[358860183,1745489451487,-500.0,0.00020273,2]
[358860184,1745489451498,-500.0,0.00020273,2]
[358860185,1745489451508,-768.56,0.00020273,2]
[358860186,1745489451518,-1069.01,0.00020273,2]
[358860187,1745489451530,-500.0,0.00020273,2]
[358860188,1745489451540,-524.05187138,0.00020273,2]
[358860189,1745489451550,-500.0,0.00020273,2]
[358860190,1745489451559,-500.0,0.00020273,2]
[358860191,1745489451569,-500.0,0.00020273,2]
[358860192,1745489451579,-715.59,0.00020273,2]
[358860193,1745489451588,-500.0,0.00020273,2]
[358860194,1745489451598,-500.0,0.00020273,2]
[358860195,1745489451608,-500.0,0.00020273,2]
[358860196,1745489451618,-500.0,0.00020273,2]
[358860197,1745489451628,-500.0,0.00020273,2]
[358860198,1745489451638,-530.07,0.00020273,2]
[358860199,1745489451647,-500.0,0.00020273,2]
[358860200,1745489451657,-500.0,0.00020273,2]
[358860201,1745489451667,-500.0,0.00020273,2]
[358860202,1745489451676,-733.9,0.00020273,2]
[358860203,1745489451686,-500.0,0.00020273,2]
[358860204,1745489451695,-680.21,0.00020273,2]
[358860205,1745489451709,-500.0,0.00020273,2]
[358860206,1745489451719,-530.12,0.00020273,2]
[358860207,1745489451728,-2568.91,0.00020273,2]
[358860208,1745489451738,-1138.04,0.00020273,2]
[358860209,1745489451749,-748.71,0.00020273,2]
[358860210,1745489451758,-889.41,0.00020273,2]
[358860211,1745489451768,-500.0,0.00020273,2]
[358860212,1745489451780,-762.04,0.00020273,2]
[358860213,1745489451789,-500.0,0.00020273,2]
[358860214,1745489451799,-500.0,0.00020273,2]
[358860215,1745489451808,-1037.35,0.00020273,2]
[358860216,1745489451818,-1310.64,0.00020273,2]
[358860217,1745489451827,-606.59,0.00020273,2]
[358860218,1745489451836,-799.9,0.00020273,2]
[358860219,1745489451846,-500.0,0.00020273,2]
[358860220,1745489451855,-1707.04,0.00020273,2]
[358860221,1745489451865,-692.61,0.00020273,2]
[358860222,1745489451875,-609.36,0.00020273,2]
[358860223,1745489451885,-500.0,0.00020273,2]
[358860224,1745489451894,-500.0,0.00020273,2]
[358860225,1745489451904,-500.0,0.00020273,2]
[358860226,1745489451913,-500.0,0.00020273,2]
[358860227,1745489451922,-562.41,0.00020273,2]
[358860228,1745489451931,-500.0,0.00020273,2]
[358860229,1745489451941,-500.0,0.00020273,2]
[358860230,1745489451951,-1256.09,0.00020273,2]
[358860231,1745489451960,-3272.68,0.00020273,2]
[358860232,1745489451970,-238.7618119,0.00020273,2]
[358860233,1745489451979,-1170.88,0.00020273,2]
[358860234,1745489451988,-517.92,0.00020273,2]
[358860235,1745489451998,-500.0,0.00020273,2]
[358860236,1745489452008,-1132.42,0.00020273,2]
[358860237,1745489452018,-500.0,0.00020273,2]
[358860238,1745489452027,-723.12,0.00020273,2]
[358860239,1745489452037,-1376.99,0.00020273,2]
[358860240,1745489452046,-500.0,0.00020273,2]
[358860241,1745489452055,-775.42,0.00020273,2]
[358860242,1745489452065,-500.0,0.00020273,2]
[358860243,1745489452074,-500.0,0.00020273,2]
[358860244,1745489452088,-500.0,0.00020273,2]
[358860245,1745489452098,-1124.79,0.00020273,2]
[358860246,1745489452108,-533.8,0.00020273,2]
[358860247,1745489452118,-559.68,0.00020273,2]
[358860248,1745489452128,-500.0,0.00020273,2]
[358860249,1745489452137,-500.0,0.00020273,2]
[358860250,1745489452146,-1041.22,0.00020273,2]
[358860251,1745489452156,-2174.1,0.00020273,2]
[358860252,1745489452166,-500.0,0.00020273,2]
[358860253,1745489452176,-513.01,0.00020273,2]
[358860254,1745489452185,-500.0,0.00020273,2]
[358860255,1745489452195,-500.0,0.00020273,2]
[358860256,1745489452204,-500.0,0.00020273,2]
[358860257,1745489452215,-655.92,0.00020273,2]
[358860258,1745489452224,-514.54,0.00020273,2]
[358860259,1745489452234,-500.0,0.00020273,2]
[358860260,1745489452243,-500.0,0.00020273,2]
[358860261,1745489452252,-151.0,0.00020273,2]
[358860262,1745489452262,-151.0,0.00020273,2]
[358860263,1745489452272,-670.98,0.00020273,2]
[358860264,1745489452281,-719.07,0.00020273,2]
[358860265,1745489452290,-500.0,0.00020273,2]
[358860266,1745489452300,-1121.26,0.00020273,2]
[358860267,1745489452310,-500.0,0.00020273,2]
[358860268,1745489452319,-282.27513394,0.00020273,2]
[358860269,1745489452329,-853.69,0.00020273,2]
[358860270,1745489452339,-500.0,0.00020273,2]
[358860271,1745489452348,-500.0,0.00020273,2]
[358860272,1745489452358,-631.44,0.00020273,2]
[358860273,1745489452368,-500.0,0.00020273,2]
[358860274,1745489452377,-500.0,0.00020273,2]
[358860275,1745489452387,-500.0,0.00020273,2]
[358860276,1745489452609,-500.0,0.00020273,2]
[358860277,1745489452619,-500.0,0.00020273,2]
[358860278,1745489452629,-500.0,0.00020273,2]
[358860279,1745489452639,-500.0,0.00020273,2]
[358860280,1745489452648,-598.03,0.00020273,2]
[358860281,1745489452658,-500.0,0.00020273,2]
[358860282,1745489452667,-500.0,0.00020273,2]
[358860283,1745489452677,-500.0,0.00020273,2]
[358860284,1745489452686,-500.0,0.00020273,2]
[358860285,1745489452696,-500.0,0.00020273,2]
[358860286,1745489452709,-500.0,0.00020273,2]
[358860287,1745489452719,-500.0,0.00020273,2]
[358860288,1745489452866,-500.0,0.00020273,2]
[358860289,1745489452876,-177.331041,0.00020273,2]
[358860290,1745489452886,-177.331041,0.00020273,2]
[358860291,1745489452895,-177.331041,0.00020273,2]
[358860292,1745489452904,-2024.88,0.00020273,2]
[358860293,1745489452914,-177.331041,0.00020273,2]
[358860294,1745489452923,-1098.13,0.00020273,2]
[358860295,1745489452932,-177.331041,0.00020273,2]
[358860296,1745489452941,-177.331045,0.00020273,2]
[358860297,1745489452951,-500.0,0.00020273,2]
[358860298,1745489452960,-533.53,0.00020273,2]
[358860299,1745489452969,-513.81,0.00020273,2]
[358860300,1745489452978,-1754.72,0.00020273,2]
[358860301,1745489452987,-901.96,0.00020273,2]
[358860302,1745489452996,-500.0,0.00020273,2]
[358860303,1745489453005,-1124.14,0.00020273,2]
[358860304,1745489453014,-1367.86,0.00020273,2]
[358860305,1745489453024,-500.0,0.00020273,2]
[358860306,1745489453034,-581.52,0.00020273,2]
[358860307,1745489453043,-587.18,0.00020273,2]
[358860308,1745489453053,-500.0,0.00020273,2]
[358860309,1745489453062,-916.63,0.00020273,2]
[358860310,1745489453071,-500.0,0.00020273,2]
[358860311,1745489453081,-611.62506163,0.00020273,2]
[358860312,1745489453091,-661.66,0.00020273,2]
[358860313,1745489453100,-4282.21,0.00020273,2]
[358860314,1745489453110,-3887.48,0.00020273,2]
[358860315,1745489453120,-579.52,0.00020273,2]
[358860316,1745489453129,-500.0,0.00020273,2]
[358860317,1745489453139,-546.89,0.00020273,2]
[358860318,1745489453148,-500.0,0.00020273,2]
[358860319,1745489453157,-567.52,0.00020273,2]
[358860320,1745489453167,-1185.64,0.00020273,2]
[358860321,1745489453176,-931.76,0.00020273,2]
[358860322,1745489453185,-5074.33,0.00020273,2]
[358860323,1745489453195,-500.0,0.00020273,2]
[358860324,1745489453204,-500.0,0.00020273,2]
[358860325,1745489453214,-500.0,0.00020273,2]
[358860326,1745489453223,-1553.83,0.00020273,2]
[358860327,1745489453234,-864.12,0.00020273,2]
[358860328,1745489453244,-500.0,0.00020273,2]
[358860329,1745489453253,-886.11,0.00020273,2]
[358860330,1745489453263,-911.589968,0.00020273,2]
[358860331,1745489453272,-911.589968,0.00020273,2]
[358860332,1745489453282,-500.0,0.00020273,2]
[358860333,1745489453291,-500.0,0.00020273,2]
[358860334,1745489453301,-911.589968,0.00020273,2]
[358860335,1745489453311,-500.0,0.00020273,2]
[358860336,1745489453320,-911.589968,0.00020273,2]
[358860337,1745489453329,-1443.83,0.00020273,2]
[358860338,1745489453338,-509.0,0.00020273,2]
[358860339,1745489453348,-1192.53,0.00020273,2]
[358860340,1745489453357,-615.55,0.00020273,2]
[358860341,1745489453367,-3805.81,0.00020273,2]
[358860342,1745489453376,-2046.51,0.00020273,2]
[358860343,1745489453385,-678.09,0.00020273,2]
[358860344,1745489453395,-500.0,0.00020273,2]
[358860345,1745489453404,-500.0,0.00020273,2]
[358860346,1745489453413,-562.85,0.00020273,2]
[358860347,1745489453423,-632.41,0.00020273,2]
[358860348,1745489453432,-500.0,0.00020273,2]
[358860349,1745489453442,-912.5,0.00020273,2]
[358860350,1745489453452,-500.0,0.00020273,2]
[358860351,1745489453461,-1401.19,0.00020273,2]
[358860352,1745489453470,-500.0,0.00020273,2]
[358860353,1745489453480,-874.28,0.00020273,2]
[358860354,1745489453489,-500.0,0.00020273,2]
[358860355,1745489453499,-873.15,0.00020273,2]
[358860356,1745489453508,-3143.72,0.00020273,2]
[358860357,1745489453517,-500.0,0.00020273,2]
[358860358,1745489453527,-500.0,0.00020273,2]
[358860359,1745489453537,-500.0,0.00020273,2]
[358860360,1745489453547,-500.0,0.00020273,2]
[358860361,1745489453557,-500.0,0.00020273,2]
[358860362,1745489453566,-500.0,0.00020273,2]
[358860363,1745489453576,-997.02,0.00020273,2]
[358860364,1745489453585,-500.0,0.00020273,2]
[358860365,1745489453596,-4790.61,0.00020273,2]
[358860366,1745489453606,-813.07,0.00020273,2]
[358860367,1745489453616,-1112.09,0.00020273,2]
[358860368,1745489453626,-500.0,0.00020273,2]
[358860369,1745489453636,-1475.7,0.00020273,2]
[358860370,1745489453646,-582.89,0.00020273,2]
[358860371,1745489453655,-830.22,0.00020273,2]
[358860372,1745489453664,-676.06,0.00020273,2]
[358860373,1745489453674,-3788.55,0.00020273,2]
[358860374,1745489453683,-522.27,0.00020273,2]
[358860375,1745489453693,-1148.4,0.00020273,2]
[358860376,1745489453705,-1824.6,0.00020273,2]
[358860377,1745489453715,-601.47,0.00020273,2]
[358860378,1745489453724,-500.0,0.00020273,2]
[358860379,1745489453734,-193.635612,0.00020273,2]
[358860380,1745489453745,-500.0,0.00020273,2]
[358860381,1745489453755,-4433.4,0.00020273,2]
[358860382,1745489453765,-1019.64,0.00020273,2]
[358860383,1745489453776,-500.0,0.00020273,2]
[358860384,1745489453788,-500.0,0.00020273,2]
[358860385,1745489453799,-930.28,0.00020273,2]
[358860386,1745489453810,-500.0,0.00020273,2]
[358860387,1745489453820,-720.8,0.00020273,2]
[358860388,1745489453829,-1451.68,0.00020273,2]
[358860389,1745489453840,-500.0,0.00020273,2]
[358860390,1745489453850,-878.44,0.00020273,2]
[358860391,1745489453861,-500.0,0.00020273,2]
[358860392,1745489453871,-556.83,0.00020273,2]
[358860393,1745489453881,-500.0,0.00020273,2]
[358860394,1745489453892,-500.0,0.00020273,2]
[358860395,1745489453905,-500.0,0.00020273,2]
[358860396,1745489453915,-10107.57,0.00020273,2]
[358860397,1745489453926,-664.52,0.00020273,2]
[358860398,1745489453936,-500.0,0.00020273,2]
[358860399,1745489453948,-500.0,0.00020273,2]
[358860400,1745489453957,-3349.47,0.00020273,2]
[358860401,1745489453967,-500.0,0.00020273,2]
[358860402,1745489453977,-500.0,0.00020273,2]
[358860403,1745489453987,-500.0,0.00020273,2]
[358860404,1745489453998,-3297.65,0.00020273,2]
[358860405,1745489454010,-578.53,0.00020273,2]
[358860406,1745489454019,-4840.54,0.00020273,2]
[358860407,1745489454028,-500.0,0.00020273,2]
[358860408,1745489454038,-6053.9,0.00020273,2]
[358860409,1745489454050,-1528.26,0.00020273,2]
[358860410,1745489454059,-500.0,0.00020273,2]
[358860411,1745489454069,-953.91,0.00020273,2]
[358860412,1745489454079,-601.0,0.00020273,2]
[358860413,1745489454089,-740.15,0.00020273,2]
[358860414,1745489454098,-3353.23,0.00020273,2]
[358860415,1745489454108,-500.0,0.00020273,2]
[358860416,1745489454118,-894.56,0.00020273,2]
[358860417,1745489454128,-5489.47,0.00020273,2]